fUST/lending_fUST_20250608
["ID","MTS","AMOUNT","RATE_DAILY","PERIOD"]
[364948465,1749340234964,-440.0,0.00019452,2]
[364948466,1749340234974,-440.0,0.00019452,2]
[364948467,1749340234985,-430.0,0.00019452,2]
[364948468,1749340234995,-440.0,0.00019452,2]
[364948469,1749340235005,-440.0,0.00019452,2]
[364948470,1749340235016,-440.0,0.00019452,2]
[364948471,1749340235026,-440.0,0.00019452,2]
[364948472,1749340235036,-440.0,0.00019452,2]
[364948473,1749340235045,-430.0,0.00019452,2]
[364948474,1749340235055,-440.0,0.00019452,2]
[364948475,1749340235066,-440.0,0.00019452,2]
[364948476,1749340235076,-440.0,0.00019452,2]
[364948477,1749340235085,-440.0,0.00019452,2]
[364948478,1749340235095,-151.0,0.00019452,2]
[364948479,1749340235104,-151.0,0.00019452,2]
[364948480,1749340235114,-440.0,0.00019452,2]
[364948481,1749340235123,-440.0,0.00019452,2]
[364948482,1749340235133,-440.0,0.00019452,2]
[364948483,1749340235142,-440.0,0.00019452,2]
[364948484,1749340235151,-151.0,0.00019452,2]
[364948485,1749340235160,-440.0,0.00019452,2]
[364948486,1749340235169,-259.0,0.00019452,2]
[364948487,1749340235179,-430.0,0.00019452,2]
[364948488,1749340235188,-151.0,0.00019452,2]
[364948489,1749340235197,-151.0,0.00019452,2]
[364948490,1749340235206,-440.0,0.00019452,2]
[364948491,1749340235216,-948.67,0.00019452,2]
[364948492,1749340235225,-526.73359417,0.00019452,2]
[364948493,1749340235234,-440.0,0.00019452,2]
[364948494,1749340235243,-440.0,0.00019452,2]
[364948495,1749340235253,-430.0,0.00019452,2]
[364948496,1749340235262,-440.0,0.00019452,2]
[364948497,1749340235271,-440.0,0.00019452,2]
[364948498,1749340235281,-430.0,0.00019452,2]
[364948499,1749340235290,-430.0,0.00019452,2]
[364948500,1749340235299,-440.0,0.00019452,2]
[364948501,1749340235308,-430.0,0.00019452,2]
[364948502,1749340235318,-440.0,0.00019452,2]
[364948503,1749340235327,-660.01,0.00019452,2]
[364948504,1749340235337,-513.99435566,0.00019452,2]
[364948505,1749340235346,-440.0,0.00019452,2]
[364948506,1749340235355,-410.0,0.00019452,2]
[364948507,1749340235365,-440.0,0.00019452,2]
[364948508,1749340235374,-440.0,0.00019452,2]
[364948509,1749340235387,-430.0,0.00019452,2]
[364948510,1749340235407,-430.0,0.00019452,2]
[364948511,1749340235417,-519.99,0.00019452,2]
[364948512,1749340235426,-440.0,0.00019452,2]
[364948513,1749340235436,-522.04,0.00019452,2]
[364948514,1749340235446,-440.0,0.00019452,2]
[364948515,1749340235455,-440.0,0.00019452,2]
[364948516,1749340235465,-440.0,0.00019452,2]
[364948517,1749340235475,-500.0,0.00019555,2]
[364948518,1749340235485,-518.43483232,0.00019662,2]
[364948519,1749340235495,-265.26159556,0.00019662,2]
[364948520,1749340235504,-325.28035834,0.00019721,2]
[364948521,1749340235514,-1000.0,0.00019721,2]
[364948522,1749340235524,-500.0,0.00019726,2]
[364948523,1749340235533,-430.0,0.00019726,2]
[364948524,1749340235543,-151.0,0.00019726,2]
[364948525,1749340235562,-151.0,0.00019726,2]
[364948526,1749340235576,-419.18896769,0.00019726,2]
[364948527,1749340235589,-440.0,0.00019726,2]
[364948528,1749340235599,-420.0,0.00019726,2]
[364948529,1749340235609,-153.15064607,0.00019726,2]
[364948530,1749340235619,-420.0,0.00019726,2]
[364948531,1749340235629,-440.0,0.00019726,2]
[364948532,1749340235639,-430.0,0.00019726,2]
[364948533,1749340235649,-282.7,0.00019726,2]
[364948534,1749340235659,-443.54,0.00019726,2]
[364948535,1749340235668,-224.94,0.00019726,2]
[364948536,1749340235678,-430.0,0.00019726,2]
[364948537,1749340235688,-440.0,0.00019726,2]
[364948538,1749340235698,-430.0,0.00019726,2]
[364948539,1749340235708,-430.0,0.00019726,2]
[364948540,1749340235718,-430.0,0.00019726,2]
[364948541,1749340235727,-410.0,0.00019726,2]
[364948542,1749340235737,-420.0,0.00019726,2]
[364948543,1749340235747,-420.0,0.00019726,2]
[364948544,1749340235756,-242.044039,0.00019726,2]
[364948545,1749340235766,-440.0,0.00019726,2]
[364948546,1749340235776,-242.044039,0.00019726,2]
[364948547,1749340235785,-440.0,0.00019726,2]
[364948548,1749340235795,-151.0,0.00019726,2]
[364948549,1749340235805,-430.0,0.00019726,2]
[364948550,1749340235814,-440.0,0.00019726,2]
[364948551,1749340235824,-440.0,0.00019726,2]
[364948552,1749340235834,-440.0,0.00019726,2]
[364948553,1749340235844,-789.02,0.00019726,2]
[364948554,1749340235855,-430.0,0.00019726,2]
[364948555,1749340235867,-420.0,0.00019726,2]
[364948556,1749340235879,-440.0,0.00019726,2]
[364948557,1749340235888,-440.0,0.00019726,2]
[364948558,1749340235898,-440.0,0.00019726,2]
[364948559,1749340235908,-440.0,0.00019726,2]
[364948560,1749340235921,-440.0,0.00019726,2]
[364948561,1749340235931,-151.0,0.00019726,2]
[364948562,1749340235942,-440.0,0.00019726,2]
[364948563,1749340235953,-440.0,0.00019726,2]
[364948564,1749340235964,-440.0,0.00019726,2]
[364948565,1749340235976,-440.0,0.00019726,2]
[364948566,1749340235987,-440.0,0.00019726,2]
[364948567,1749340235997,-430.0,0.00019726,2]
[364948568,1749340236007,-440.0,0.00019726,2]
[364948569,1749340236018,-430.0,0.00019726,2]
[364948570,1749340236028,-440.0,0.00019726,2]
[364948571,1749340236038,-440.0,0.00019726,2]
[364948572,1749340236048,-440.0,0.00019726,2]
[364948573,1749340236058,-430.0,0.00019726,2]
[364948574,1749340236068,-440.0,0.00019726,2]
[364948575,1749340236078,-440.0,0.00019726,2]
[364948576,1749340236089,-430.0,0.00019726,2]
[364948577,1749340236099,-430.0,0.00019726,2]
[364948578,1749340236110,-430.0,0.00019726,2]
[364948579,1749340236120,-440.0,0.00019726,2]
[364948580,1749340236130,-430.0,0.00019726,2]
[364948581,1749340236140,-430.0,0.00019726,2]
[364948582,1749340236150,-440.0,0.00019726,2]
[364948583,1749340236160,-440.0,0.00019726,2]
[364948584,1749340236170,-430.0,0.00019726,2]
[364948585,1749340236180,-440.0,0.00019726,2]
[364948586,1749340236190,-151.0,0.00019726,2]
[364948587,1749340236200,-390.0,0.00019726,2]
[364948588,1749340236210,-440.0,0.00019726,2]
[364948589,1749340236220,-430.0,0.00019726,2]
[364948590,1749340236230,-440.0,0.00019726,2]
[364948591,1749340236241,-440.0,0.00019726,2]
[364948592,1749340236251,-948.67,0.00019726,2]
[364948593,1749340236261,-440.0,0.00019726,2]
[364948594,1749340236271,-155.0,0.00019726,2]
[364948595,1749340236284,-440.0,0.00019726,2]
[364948596,1749340236294,-440.0,0.00019726,2]
[364948597,1749340236304,-440.0,0.00019726,2]
[364948598,1749340236314,-440.0,0.00019726,2]
[364948599,1749340236324,-440.0,0.00019726,2]
[364948600,1749340236334,-660.01,0.00019726,2]
[364948601,1749340236344,-440.0,0.00019726,2]
[364948602,1749340236354,-460.40131777,0.00019726,2]
[364948603,1749340236364,-440.0,0.00019726,2]
[364948604,1749340236374,-519.99,0.00019726,2]
[364948605,1749340236383,-440.0,0.00019726,2]
[364948606,1749340236399,-361.67509405,0.00019726,2]
[364948607,1749340236409,-440.0,0.00019726,2]
[364948608,1749340236419,-440.0,0.00019726,2]
[364948609,1749340236431,-500.0,0.00019733,2]
[364948610,1749340236441,-500.00905201,0.00019768,2]
[364948611,1749340236451,-500.0,0.00019835,2]
[364948612,1749340236461,-205.72756557,0.000199,2]
[364948613,1749340236473,-500.0,0.00019921,2]
[364948614,1749340236483,-500.0,0.00019921,2]
[364948615,1749340236493,-638.20879264,0.00019921,2]
[364948616,1749340236502,-628.65792344,0.00019921,2]
[364948617,1749340236513,-500.0,0.00019921,2]
[364948618,1749340236523,-615.67473108,0.00019921,2]
[364948619,1749340236532,-500.0,0.00019921,2]
[364948620,1749340236542,-500.0,0.00019921,2]
[364948621,1749340236552,-500.0,0.00019931,2]
[364948622,1749340236562,-500.0,0.0001996,2]
[364948623,1749340236572,-500.0,0.0001996,2]
[364948624,1749340236581,-578.16,0.00019989,3]
[364948625,1749340236591,-151.0,0.00019989,2]
[364948626,1749340236600,-500.0,0.00019998,2]
[364948627,1749340236610,-361.26460871,0.00019999,2]
[364948628,1749340236620,-151.0,0.0002,2]
[364948629,1749340236630,-151.0,0.0002,2]
[364948630,1749340236640,-410.70962939,0.0002,2]
[364948631,1749340236650,-458.02611155,0.0002,2]
[364948632,1749340236659,-242.044039,0.0002,2]
[364948633,1749340236669,-440.0,0.0002,2]
[364948634,1749340236680,-242.044039,0.0002,2]
[364948635,1749340236689,-440.0,0.0002,2]
[364948636,1749340236701,-151.0,0.0002,2]
[364948637,1749340236711,-152.7745404,0.0002,2]
[364948638,1749340236721,-410.0,0.0002,2]
[364948639,1749340236730,-440.0,0.0002,2]
[364948640,1749340236741,-789.02,0.0002,2]
[364948641,1749340236751,-440.0,0.0002,2]
[364948642,1749340236761,-440.0,0.0002,2]
[364948643,1749340236771,-440.0,0.0002,2]
[364948644,1749340236780,-440.0,0.0002,2]
[364948645,1749340236790,-440.0,0.0002,2]
[364948646,1749340236800,-440.0,0.0002,2]
[364948647,1749340236810,-440.0,0.0002,2]
[364948648,1749340236819,-440.0,0.0002,2]
[364948649,1749340236829,-440.0,0.0002,2]
[364948650,1749340236839,-440.0,0.0002,2]
[364948651,1749340236849,-440.0,0.0002,2]
[364948652,1749340236859,-440.0,0.0002,2]
[364948653,1749340236871,-440.0,0.0002,2]
[364948654,1749340236881,-440.0,0.0002,2]
[364948655,1749340236891,-440.0,0.0002,2]
[364948656,1749340236902,-410.0,0.0002,2]
[364948657,1749340236911,-430.0,0.0002,2]
[364948658,1749340236922,-440.0,0.0002,2]
[364948659,1749340236933,-440.0,0.0002,2]
[364948660,1749340236943,-151.0,0.0002,2]
[364948661,1749340236953,-440.0,0.0002,2]
[364948662,1749340236964,-440.0,0.0002,2]
[364948663,1749340236974,-440.0,0.0002,2]
[364948664,1749340236984,-440.0,0.0002,2]
[364948665,1749340236994,-440.0,0.0002,2]
[364948666,1749340237004,-440.0,0.0002,2]
[364948667,1749340237013,-440.0,0.0002,2]
[364948668,1749340237024,-410.0,0.0002,2]
[364948669,1749340237033,-440.0,0.0002,2]
[364948670,1749340237043,-660.01,0.0002,2]
[364948671,1749340237058,-410.0,0.0002,2]
[364948672,1749340237068,-440.0,0.0002,2]
[364948673,1749340237080,-379.18,0.0002,2]
[364948674,1749340237091,-519.99,0.0002,2]
[364948675,1749340237102,-440.0,0.0002,2]
[364948676,1749340237113,-440.0,0.0002,2]
[364948677,1749340237123,-184.32,0.00020239,2]
[364948678,1749340237132,-435.51195291,0.00020263,2]
[364948679,1749340237143,-1500.0,0.00020268,2]
[364948680,1749340237153,-151.0,0.00020273,2]
[364948681,1749340237163,-151.0,0.00020273,2]
[364948682,1749340237173,-440.0,0.00020273,2]
[364948683,1749340237183,-440.0,0.00020273,2]
[364948684,1749340237193,-440.0,0.00020273,2]
[364948685,1749340237204,-789.02,0.00020273,2]
[364948686,1749340237214,-432.37,0.00020273,2]
[364948687,1749340237224,-440.0,0.00020273,2]
[364948688,1749340237234,-440.0,0.00020273,2]
[364948689,1749340237244,-440.0,0.00020273,2]
[364948690,1749340237253,-440.0,0.00020273,2]
[364948691,1749340237263,-151.0,0.00020273,2]
[364948692,1749340237273,-440.0,0.00020273,2]
[364948693,1749340237283,-440.0,0.00020273,2]
[364948694,1749340237293,-503.75,0.00020273,2]
[364948695,1749340237303,-440.0,0.00020273,2]
[364948696,1749340237441,-242.90764583,0.00020273,2]
[364948697,1749340237451,-440.0,0.00020273,2]
[364948698,1749340237461,-440.0,0.00020273,2]
[364948699,1749340237471,-440.0,0.00020273,2]
[364948700,1749340237482,-440.0,0.00020273,2]
[364948701,1749340237493,-410.0,0.00020273,2]
[364948702,1749340237503,-440.0,0.00020273,2]
[364948703,1749340237513,-440.0,0.00020273,2]
[364948704,1749340237523,-440.0,0.00020273,2]
[364948705,1749340237534,-440.0,0.00020273,2]
[364948706,1749340237544,-440.0,0.00020273,2]
[364948707,1749340237554,-410.0,0.00020273,2]
[364948708,1749340237564,-440.0,0.00020273,2]
[364948709,1749340237574,-440.0,0.00020273,2]
[364948710,1749340237584,-440.0,0.00020273,2]
[364948711,1749340237595,-440.0,0.00020273,2]
[364948712,1749340237605,-660.01,0.00020273,2]
[364948713,1749340237615,-440.0,0.00020273,2]
[364948714,1749340237626,-519.99,0.00020273,2]
[364948715,1749340237636,-440.0,0.00020273,2]
[364948716,1749340237646,-440.0,0.00020273,2]
[364948717,1749340237655,-151.0,0.00020274,2]
[364948718,1749340237665,-151.0,0.00020274,2]
[364948720,1749340237675,-242.044039,0.00020274,2]
[364948722,1749340237684,-242.044039,0.00020274,2]
[364948724,1749340237694,-151.0,0.00020274,2]
[364948726,1749340237705,-155.0,0.00020274,2]
[364948728,1749340237715,-205.7275655,0.00020285,3]
[364948730,1749340237725,-1000.0,0.00020383,2]
[364948732,1749340237735,-537.67415374,0.00020469,2]
[364948734,1749340237744,-500.0,0.00020508,2]
[364948736,1749340237755,-4432.6,0.00020538,3]
[364948738,1749340237764,-2955.06,0.00020538,3]
[364948741,1749340237774,-1477.52,0.00020538,3]
[364948743,1749340237784,-738.76,0.00020538,3]
[364948745,1749340237794,-369.38,0.00020538,3]
[364948747,1749340237804,-213.01382694,0.00020538,3]
[364948749,1749340237813,-151.0,0.00020538,2]
[364948751,1749340237823,-500.0,0.00020547,2]
[364948753,1749340237834,-440.0,0.00020547,2]
[364948755,1749340237844,-440.0,0.00020547,2]
[364948757,1749340237853,-440.0,0.00020547,2]
[364948759,1749340237863,-789.02,0.00020547,2]
[364948761,1749340237872,-440.0,0.00020547,2]
[364948762,1749340237882,-440.0,0.00020547,2]
[364948764,1749340237892,-440.0,0.00020547,2]
[364948766,1749340237901,-464.12,0.00020547,2]
[364948768,1749340237911,-440.0,0.00020547,2]
[364948770,1749340237920,-440.0,0.00020547,2]
[364948772,1749340237930,-440.0,0.00020547,2]
[364948774,1749340237941,-440.0,0.00020547,2]
[364948776,1749340237951,-440.0,0.00020547,2]
[364948778,1749340237960,-440.0,0.00020547,2]
[364948780,1749340237970,-440.0,0.00020547,2]
[364948782,1749340237979,-440.0,0.00020547,2]
[364948785,1749340237989,-440.0,0.00020547,2]
[364948786,1749340237998,-440.0,0.00020547,2]
[364948789,1749340238008,-440.0,0.00020547,2]
[364948791,1749340238018,-440.0,0.00020547,2]
[364948793,1749340238028,-440.0,0.00020547,2]
[364948795,1749340238038,-440.0,0.00020547,2]
[364948797,1749340238047,-440.0,0.00020547,2]
[364948799,1749340238057,-440.0,0.00020547,2]
[364948801,1749340238067,-660.01,0.00020547,2]
[364948803,1749340238081,-440.0,0.00020547,2]
[364948805,1749340238090,-519.99,0.00020547,2]
[364948807,1749340238101,-440.0,0.00020547,2]
[364948809,1749340238113,-386.5,0.00020547,2]
[364948811,1749340238123,-151.0,0.00020548,2]
[364948813,1749340238132,-11851.94353573,0.00020578,2]
[364948815,1749340238142,-151.0,0.00020578,2]
[364948817,1749340238151,-151.0,0.00020578,2]
[364948819,1749340238161,-151.0,0.00020578,2]
[364948821,1749340238170,-280.774301,0.00020578,2]
[364948823,1749340238179,-810.86,0.00020596,2]
[364948825,1749340238188,-242.044039,0.00020604,2]
[364948827,1749340238198,-242.044039,0.00020604,2]
[364948829,1749340238208,-151.0,0.00020604,2]
[364948831,1749340238217,-160.0,0.00020605,2]
[364948834,1749340238229,-160.0,0.00020606,2]
[364948836,1749340238239,-205.7275655,0.00020669,3]
[364948837,1749340238249,-2000.0,0.00020816,2]
[364948839,1749340238259,-200.0,0.0002082,2]
[364948841,1749340238269,-200.0,0.0002082,2]
[364948844,1749340238279,-440.0,0.00020821,2]
[364948845,1749340238288,-440.0,0.00020821,2]
[364948847,1749340238297,-440.0,0.00020821,2]
[364948849,1749340238307,-789.02,0.00020821,2]
[364948851,1749340238317,-383.8,0.00020821,2]
[364948853,1749340238326,-440.0,0.00020821,2]
[364948855,1749340238336,-440.0,0.00020821,2]
[364948857,1749340238346,-304.8,0.00020821,2]
[364948859,1749340238356,-440.0,0.00020821,2]
[364948860,1749340238366,-440.0,0.00020821,2]
[364948862,1749340238375,-171.31285619,0.00020821,2]
[364948864,1749340238384,-440.0,0.00020821,2]
[364948866,1749340238394,-440.0,0.00020821,2]
[364948868,1749340238405,-440.0,0.00020821,2]
[364948870,1749340238417,-160.05109424,0.00020821,2]
[364948873,1749340238426,-440.0,0.00020821,2]
[364948875,1749340238436,-151.0,0.00020821,2]
[364948877,1749340238445,-440.0,0.00020821,2]
[364948878,1749340238456,-440.0,0.00020821,2]
[364948880,1749340238465,-440.0,0.00020821,2]
[364948882,1749340238475,-380.0,0.00020821,2]
[364948884,1749340238486,-440.0,0.00020821,2]
[364948885,1749340238495,-440.0,0.00020821,2]
[364948886,1749340238505,-440.0,0.00020821,2]
[364948887,1749340238515,-660.01,0.00020821,2]
[364948888,1749340238525,-440.0,0.00020821,2]
[364948889,1749340238534,-519.99,0.00020821,2]
[364948890,1749340238544,-440.0,0.00020821,2]
[364948891,1749340238554,-500.0,0.00020858,2]
[364948892,1749340238563,-420.0,0.00020896,2]
[364948893,1749340238574,-300.0,0.00020899,2]
[364948894,1749340238583,-420.0,0.00020899,2]
[364948895,1749340238593,-1123.68943109,0.00020931,2]
[364948896,1749340238603,-176.168258,0.00020997,2]
[364948897,1749340238613,-1680.0,0.00021,2]
[364948898,1749340238623,-800.0,0.00021044,2]
[364948899,1749340238632,-205.7275655,0.00021054,4]
[364948900,1749340238642,-500.0,0.00021095,3]
[364948901,1749340238651,-151.0,0.00021095,2]
[364948902,1749340238661,-242.044039,0.00021095,2]
[364948903,1749340238670,-440.0,0.00021095,2]
[364948904,1749340238680,-242.044039,0.00021095,2]
[364948905,1749340238689,-440.0,0.00021095,2]
[364948906,1749340238699,-151.0,0.00021095,2]
[364948907,1749340238709,-440.0,0.00021095,2]
[364948908,1749340238718,-789.02,0.00021095,2]
[364948909,1749340238728,-440.0,0.00021095,2]
[364948910,1749340238737,-440.0,0.00021095,2]
[364948911,1749340238747,-440.0,0.00021095,2]
[364948912,1749340238756,-440.0,0.00021095,2]
[364948913,1749340238766,-440.0,0.00021095,2]
[364948914,1749340238776,-440.0,0.00021095,2]
[364948915,1749340238786,-440.0,0.00021095,2]
[364948916,1749340238796,-440.0,0.00021095,2]
[364948917,1749340238805,-440.0,0.00021095,2]
[364948918,1749340238815,-440.0,0.00021095,2]
[364948919,1749340238824,-440.0,0.00021095,2]
[364948920,1749340238833,-440.0,0.00021095,2]
[364948921,1749340238843,-440.0,0.00021095,2]
[364948922,1749340238854,-440.0,0.00021095,2]
[364948923,1749340238863,-660.01,0.00021095,2]
[364948924,1749340238874,-440.0,0.00021095,2]
[364948925,1749340238884,-519.99,0.00021095,2]
[364948926,1749340238894,-440.0,0.00021095,2]
[364948927,1749340238904,-435.51195291,0.00021173,2]
[364948928,1749340238915,-506.37088155,0.0002122,2]
[364948929,1749340238926,-2500.0,0.00021364,2]
[364948930,1749340238936,-440.0,0.00021369,2]
[364948931,1749340238946,-440.0,0.00021369,2]
[364948932,1749340238956,-789.02,0.00021369,2]
[364948933,1749340238966,-440.0,0.00021369,2]
[364948934,1749340238975,-440.0,0.00021369,2]
[364948935,1749340238985,-440.0,0.00021369,2]
[364948936,1749340238994,-440.0,0.00021369,2]
[364948937,1749340239003,-440.0,0.00021369,2]
[364948938,1749340239013,-440.0,0.00021369,2]
[364948939,1749340239023,-440.0,0.00021369,2]
[364948940,1749340239033,-151.0,0.00021369,2]
[364948941,1749340239042,-440.0,0.00021369,2]
[364948942,1749340239052,-440.0,0.00021369,2]
[364948943,1749340239062,-440.0,0.00021369,2]
[364948944,1749340239071,-440.0,0.00021369,2]
[364948945,1749340239082,-440.0,0.00021369,2]
[364948946,1749340239092,-660.01,0.00021369,2]
[364948947,1749340239102,-440.0,0.00021369,2]
[364948948,1749340239112,-519.99,0.00021369,2]
[364948949,1749340239121,-440.0,0.00021369,2]
[364948950,1749340239131,-205.7275655,0.00021438,5]
[364948951,1749340239140,-207.4,0.00021468,2]
[364948952,1749340239150,-460.937858,0.00021468,2]
[364948953,1749340239159,-5000.0,0.00021468,2]
[364948954,1749340239169,-156.899606,0.00021632,2]
[364948955,1749340239180,-500.0,0.00021643,4]
[364948956,1749340239193,-124.22286211,0.00021643,2]
[364948957,1749340239398,-386.11947404,0.00019178,2]
[364948958,1749340239411,-132.54151689,0.00021643,2]
[364948959,1749340239421,-242.044039,0.00021643,2]
[364948960,1749340239431,-242.044039,0.00021643,2]
[364948961,1749340239441,-789.02,0.00021643,2]
[364948962,1749340239451,-197.49,0.00021643,2]
[364948963,1749340239461,-440.0,0.00021643,2]
[364948964,1749340239472,-440.0,0.00021643,2]
[364948965,1749340239483,-501.73,0.00021643,2]
[364948966,1749340239494,-440.0,0.00021643,2]
[364948967,1749340239504,-440.0,0.00021643,2]
[364948968,1749340239516,-440.0,0.00021643,2]
[364948969,1749340239526,-440.0,0.00021643,2]
[364948970,1749340239535,-262.99,0.00021643,2]
[364948971,1749340239545,-440.0,0.00021643,2]
[364948972,1749340239555,-440.0,0.00021643,2]
[364948973,1749340239564,-660.01,0.00021643,2]
[364948974,1749340239574,-440.0,0.00021643,2]
[364948975,1749340239584,-519.99,0.00021643,2]
[364948976,1749340239593,-172.44858271,0.00021643,2]
[364948977,1749340239603,-500.0,0.0002172,2]
[364948978,1749340239612,-364.5107659,0.00021726,2]
[364948979,1749340239622,-593.76993,0.00021777,3]
[364948980,1749340239631,-151.0,0.000218,3]
[364948981,1749340239641,-205.7275655,0.00021823,6]
[364948982,1749340239651,-3000.0,0.00021912,2]
[364948983,1749340239661,-151.0,0.00021917,2]
[364948984,1749340239672,-789.02,0.00021917,2]
[364948985,1749340239682,-440.0,0.00021917,2]
[364948986,1749340239692,-440.0,0.00021917,2]
[364948987,1749340239702,-440.0,0.00021917,2]
[364948988,1749340239711,-500.0,0.00021917,2]
[364948989,1749340239721,-440.0,0.00021917,2]
[364948990,1749340239730,-440.0,0.00021917,2]
[364948991,1749340239741,-440.0,0.00021917,2]
[364948993,1749340239856,-440.0,0.00021917,2]
[364948994,1749340239867,-660.01,0.00021917,2]
[364948995,1749340239877,-440.0,0.00021917,2]
[364948996,1749340239887,-519.99,0.00021917,2]
[364948997,1749340239897,-248.432698,0.00021918,2]
[364948998,1749340239907,-248.432698,0.00021918,2]
[364948999,1749340239917,-248.432698,0.00021918,2]
[364949000,1749340239928,-248.432698,0.00021918,2]
[364949001,1749340239938,-248.432698,0.00021918,2]
[364949002,1749340239949,-248.432698,0.00021918,2]
[364949003,1749340239962,-248.432698,0.00021918,2]
[364949004,1749340239974,-248.432698,0.00021918,2]
[364949005,1749340239985,-248.432698,0.00021918,2]
[364949006,1749340239996,-248.432698,0.00021918,2]
[364949007,1749340240006,-248.432698,0.00021918,2]
[364949009,1749340240017,-248.432698,0.00021918,2]
[364949011,1749340240027,-248.432698,0.00021918,2]
[364949012,1749340240037,-248.432698,0.00021918,2]
[364949014,1749340240047,-248.432698,0.00021918,2]
[364949016,1749340240056,-248.432698,0.00021918,2]
[364949018,1749340240067,-248.432698,0.00021918,2]
[364949019,1749340240076,-248.432698,0.00021918,2]
[364949020,1749340240087,-248.432698,0.00021918,7]
[364949021,1749340240096,-248.432708,0.00021918,7]
[364949022,1749340240107,-151.0,0.00021918,7]
[364949023,1749340240117,-743.73,0.00021943,7]
[364949024,1749340240128,-500.0,0.00021977,2]
[364949025,1749340240139,-503.80741175,0.00021977,2]
[364949026,1749340240150,-492.58,0.00022,7]
[364949027,1749340240159,-5000.0,0.00022016,2]
[364949028,1749340240169,-743.73,0.00022043,4]
[364949029,1749340240179,-435.51195291,0.00022084,2]
[364949030,1749340240188,-345.3900831,0.00022137,2]
[364949031,1749340240198,-743.73,0.00022143,6]
[364949032,1749340240208,-500.0,0.00022191,5]
[364949033,1749340240219,-242.044039,0.00022191,2]
[364949034,1749340240229,-242.044031,0.00022191,2]
[364949035,1749340240239,-789.02,0.00022191,2]
[364949036,1749340240248,-440.0,0.00022191,2]
[364949037,1749340240258,-440.0,0.00022191,2]
[364949038,1749340240268,-440.0,0.00022191,2]
[364949039,1749340240277,-440.0,0.00022191,2]
[364949040,1749340240288,-440.0,0.00022191,2]
[364949041,1749340240298,-440.0,0.00022191,2]
[364949042,1749340240308,-440.0,0.00022191,2]
[364949043,1749340240318,-660.01,0.00022191,2]
[364949044,1749340240328,-440.0,0.00022191,2]
[364949045,1749340240338,-519.99,0.00022191,2]
[364949046,1749340240350,-151.0,0.000222,6]
[364949047,1749340240360,-205.7275655,0.00022208,6]
[364949048,1749340240373,-500.0,0.0002222,2]
[364949049,1749340240383,-743.73,0.00022243,5]
[364949050,1749340240393,-369.90684858,0.00022268,2]
[364949051,1749340240408,-743.73,0.00022343,3]
[364949052,1749340240418,-800.0,0.00022404,2]
[364949053,1749340240428,-213.01382694,0.00022404,2]